bitfinex-derivatives/quotes_BTCF0:USTF0_20210109
["timestamp","ask_amount","ask_price","bid_price","bid_amount"]
[1610176952264,0.2946,39325.0,39318.0,0.0002182]
[1610176953666,0.13632608,39319.0,39318.0,0.0002182]
[1610176953868,0.69932608,39319.0,39300.0,0.0002182]
[1610176954068,0.13632608,39319.0,39299.0,0.11183]
[1610176954266,3.346,39309.0,39301.0,0.00021824]
[1610176954667,3.346,39309.0,39300.0,0.00021824]
[1610176954867,3.346,39309.0,39302.0,0.00021824]
[1610176955066,3.346,39309.0,39301.0,0.00021826]
[1610176955468,3.346,39309.0,39303.0,0.00021826]
[1610176955668,3.346,39309.0,39308.0,0.13632608]
[1610176956069,3.346,39309.0,39304.0,0.00021823]
[1610176956271,3.346,39309.0,39295.0,0.07817]
[1610176956471,3.346,39309.0,39305.0,0.00021824]
[1610176956670,0.13632608,39311.0,39296.0,0.00021824]
[1610176956871,0.13632608,39311.0,39306.0,0.00021824]
[1610176957273,0.13632608,39311.0,39296.0,0.00021822]
[1610176957472,0.13632608,39311.0,39307.0,0.00021822]
[1610176957673,0.13632608,39311.0,39310.0,0.13632608]
[1610176958074,0.13632608,39311.0,39310.0,0.1365443]
[1610176958675,0.39626,39318.0,39310.0,0.1365443]
[1610176958877,0.2784,39318.0,39310.0,0.1365443]
[1610176959079,0.2784,39318.0,39311.0,0.00021819]
[1610176959678,0.2784,39318.0,39317.0,0.13632608]
[1610176960077,0.2784,39318.0,39317.0,0.13654424]
[1610176960778,0.8793,39318.0,39317.0,0.13654424]
[1610176961781,1.01562608,39318.0,39317.0,0.13654424]
[1610176962382,1.01562608,39318.0,39317.0,0.00021816]
[1610176962782,1.01562608,39318.0,39304.0,0.00021821]
[1610176962984,1.01562608,39318.0,39317.0,0.00021821]
[1610176963383,1.01562608,39318.0,39304.0,0.00021821]
[1610176963584,1.01562608,39318.0,39317.0,0.00021821]
[1610176963784,0.8793,39318.0,39309.0,0.13632608]
[1610176963984,0.8793,39318.0,39317.0,0.00021821]
[1610176964385,0.8793,39318.0,39310.0,0.00021821]
[1610176964585,0.8793,39318.0,39317.0,0.00021821]
[1610176964785,0.8793,39318.0,39311.0,0.00021821]
[1610176965186,0.8793,39318.0,39310.0,0.00021821]
[1610176965386,0.8793,39318.0,39312.0,0.00021821]
[1610176965585,0.8793,39318.0,39311.0,0.00021821]
[1610176965787,0.13632608,39313.0,39311.0,0.00021821]
[1610176965987,0.13632608,39313.0,39310.0,0.00021821]
[1610176966187,0.13632608,39313.0,39312.0,0.00021821]
[1610176966388,0.13632608,39313.0,39311.0,0.00021821]
[1610176966791,0.13632608,39313.0,39310.0,0.00021821]
[1610176966989,0.13632608,39313.0,39312.0,0.00021823]
[1610176967189,0.13632608,39313.0,39311.0,0.00021823]
[1610176967591,0.13632608,39313.0,39312.0,0.00021823]
[1610176967992,0.13632608,39313.0,39310.0,0.00021823]
[1610176968291,0.13632608,39313.0,39312.0,0.00021823]
[1610176968492,0.13632608,39313.0,39311.0,0.00021823]
[1610176968892,0.13632608,39313.0,39310.0,0.00798438]
[1610176969093,0.13632608,39313.0,39312.0,0.00021823]
[1610176969296,0.13632608,39313.0,39311.0,0.00021821]
[1610176969493,0.2784,39318.0,39311.0,0.00021821]
[1610176969693,0.2784,39318.0,39310.0,0.00776615]
[1610176969694,0.2784,39318.0,39317.0,0.13632608]
[1610176970094,0.2784,39318.0,39317.0,0.14430905]
[1610176973598,3.3684,39318.0,39317.0,0.14430905]
[1610176973796,3.50472608,39318.0,39317.0,0.14430905]
[1610176975097,3.50472608,39318.0,39317.0,0.00798297]
[1610176975699,3.50472608,39318.0,39317.0,0.13632608]
[1610176975897,3.50472608,39318.0,39317.0,0.14430974]
[1610176978703,0.2784,39318.0,39317.0,0.14430974]
[1610176979104,4.2102,39318.0,39317.0,0.14430974]
[1610176983710,4.34652608,39318.0,39317.0,0.14430974]
[1610176986517,0.2784,39318.0,39317.0,0.14430974]
[1610176987520,0.74037652,39318.0,39317.0,0.14430974]
[1610176987918,0.2784,39318.0,39317.0,0.14430974]
[1610176989120,0.74061575,39318.0,39317.0,0.14430974]
[1610176992324,1.66870048,39318.0,39317.0,0.14430974]
[1610176993226,0.74061575,39318.0,39317.0,0.14430974]
[1610176993629,1.6689669,39318.0,39317.0,0.14430974]
[1610176996432,2.3490249,39318.0,39317.0,0.14430974]
[1610176997132,1.6689669,39318.0,39317.0,0.14430974]
[1610176997632,2.34933761,39318.0,39317.0,0.14430974]
[1610177009745,5.45713761,39318.0,39317.0,0.14430974]
[1610177010147,6.01610122,39318.0,39317.0,0.14430974]
[1610177011649,6.01610122,39318.0,39317.0,0.00798366]
[1610177012047,7.65981516,39318.0,39317.0,0.00798366]
[1610177012247,7.65981516,39318.0,39304.0,0.0079826]
[1610177012448,8.74482262,39318.0,39317.0,0.00798312]
[1610177012648,10.24482262,39318.0,39317.0,0.00798312]
[1610177012847,11.60892626,39318.0,39305.0,0.00798349]
[1610177013047,13.25479639,39318.0,39317.0,0.00021569]
[1610177013246,0.00031074,39317.0,39306.0,0.00798434]
[1610177013448,10.14699645,39318.0,39306.0,0.00798434]
[1610177013647,1.8741408,39318.0,39317.0,0.00021573]
[1610177013846,0.0003108,39317.0,39307.0,0.00021573]
[1610177014048,1.0,39310.0,39297.0,0.00777102]
[1610177014250,1.5,39309.0,39308.0,0.00021578]
[1610177014449,5.7428,39309.0,39308.0,0.00021578]
[1610177014650,5.74311086,39309.0,39271.0,0.00798728]
[1610177014851,16.58540119,39309.0,39270.0,0.13632608]
[1610177015050,16.58540119,39309.0,39272.0,0.00021579]
[1610177015251,0.77403488,39283.0,39272.0,0.11546579]
[1610177015451,0.01563238,39273.0,39272.0,0.11525]
[1610177015850,4.67698022,39273.0,39272.0,0.11546582]
[1610177016051,5.58645244,39273.0,39272.0,0.11546582]
[1610177016251,2.61043959,39273.0,39272.0,0.00021582]
[1610177016451,2.63358293,39273.0,39272.0,0.00021582]
[1610177016651,2.63358293,39273.0,39264.0,0.00021584]
[1610177016854,1.70096737,39273.0,39264.0,0.00021584]
[1610177017051,1.70096737,39273.0,39272.0,0.00021584]
[1610177017253,0.01558644,39270.0,39264.0,0.00798922]
[1610177017454,0.01558644,39270.0,39264.0,0.00777338]
[1610177017654,3.05767089,39272.0,39264.0,0.00777338]
[1610177017856,3.05767089,39272.0,39265.0,0.00021582]
[1610177018055,3.05767089,39272.0,39264.0,0.00777338]
[1610177018056,0.01557108,39271.0,39270.0,0.13632608]
[1610177018657,0.01557108,39271.0,39270.0,0.1365419]
[1610177018857,3.05765734,39272.0,39270.0,0.1365419]
[1610177019056,3.05765734,39272.0,39270.0,0.13654191]
[1610177019257,0.46224658,39271.0,39270.0,0.13632608]
[1610177019657,3.51951056,39272.0,39270.0,0.13654191]
[1610177020058,0.47741143,39271.0,39270.0,0.13632608]
[1610177020357,0.47741143,39271.0,39270.0,0.13654191]
[1610177020557,3.0421,39272.0,39270.0,0.13654191]
[1610177020959,3.51915781,39272.0,39271.0,0.00021583]
[1610177021359,3.0421,39272.0,39271.0,0.00021583]
[1610177023162,0.13632608,39274.0,39271.0,0.00021583]
[1610177023362,3.2674,39272.0,39271.0,0.00021583]
[1610177023562,3.2674,39272.0,39256.0,0.00021583]
[1610177023761,3.2674,39272.0,39271.0,0.00021583]
[1610177024161,3.2674,39272.0,39263.0,0.13632608]
[1610177024362,3.2674,39272.0,39271.0,0.00021583]
[1610177024564,3.2674,39272.0,39264.0,0.00021583]
[1610177024961,3.2674,39272.0,39271.0,0.00021583]
[1610177025163,3.2674,39272.0,39265.0,0.00021589]
[1610177025362,3.2674,39272.0,39255.0,0.10791]
[1610177025563,3.2674,39272.0,39236.0,3.3936]
[1610177025964,3.2674,39272.0,39259.0,0.13632608]
[1610177026366,3.2674,39272.0,39260.0,0.00021588]
[1610177027268,0.01548651,39274.0,39260.0,0.00021588]
[1610177027466,3.4617,39274.0,39260.0,0.00021588]
[1610177028067,0.13632608,39261.0,39260.0,0.00021588]
[1610177030372,3.98,39265.0,39259.0,0.13632608]
[1610177030572,3.98,39265.0,39260.0,0.00021587]
[1610177030773,0.0771,39326.0,39260.0,0.00021587]
[1610177030774,3.831,39271.0,39260.0,0.00021587]
[1610177030974,0.47484057,39275.0,39259.0,0.13632608]
[1610177031175,3.024,39267.0,39259.0,0.13632608]
[1610177032075,3.024,39267.0,39266.0,0.13632608]
[1610177032277,3.6565,39267.0,39266.0,0.13632608]
[1610177032675,3.6565,39267.0,39254.0,0.08049]
[1610177032877,3.6565,39267.0,39246.0,0.11239]
[1610177033077,3.6565,39267.0,39242.0,3.09]
[1610177033279,3.6565,39267.0,39247.0,0.00021589]
[1610177033477,3.6565,39267.0,39246.0,0.08936]
[1610177033678,3.67194887,39267.0,39246.0,0.08936]
[1610177033877,3.67194887,39267.0,39247.0,0.00021589]
[1610177034079,3.6565,39267.0,39260.0,0.13632608]
[1610177034579,3.6565,39267.0,39246.0,0.08936]
[1610177035179,3.6565,39267.0,39247.0,0.00021588]
[1610177035978,0.07851,39270.0,39247.0,0.00021588]
[1610177036179,0.47411809,39274.0,39269.0,0.13632608]
[1610177036380,0.47409673,39276.0,39269.0,0.13632608]
[1610177036780,0.08054,39278.0,39269.0,0.13632608]
[1610177036979,0.08054,39278.0,39270.0,0.00021586]
[1610177037179,0.2942,39282.0,39270.0,0.00021586]
[1610177037381,0.01543202,39283.0,39270.0,0.09567586]
[1610177037582,0.47389101,39286.0,39270.0,0.09567586]
[1610177037778,0.47389101,39286.0,39271.0,0.00021581]
[1610177037980,0.01542972,39286.0,39271.0,0.00021581]
[1610177038181,0.01542972,39286.0,39285.0,0.13632608]
[1610177038381,3.3364,39286.0,39285.0,0.24924608]
[1610177038980,3.3364,39286.0,39285.0,0.11292]
[1610177039180,3.79487394,39286.0,39285.0,0.11292]
[1610177039582,4.71802341,39286.0,39270.0,0.09546]
[1610177039781,0.01542973,39282.0,39270.0,0.09546]
[1610177040181,0.01542973,39282.0,39279.0,0.13632608]
[1610177040582,0.45848301,39281.0,39280.0,0.00021581]
[1610177041484,0.01542945,39281.0,39280.0,0.00021581]
[1610177042082,0.15175553,39281.0,39280.0,0.00021581]
[1610177042283,0.13632608,39281.0,39280.0,0.00021581]
[1610177043785,0.01542905,39283.0,39280.0,0.00021581]
[1610177044786,0.01543021,39284.0,39280.0,0.00777237]
[1610177045186,0.01542964,39285.0,39280.0,0.00798494]
[1610177045587,0.45849244,39288.0,39280.0,0.00798494]
[1610177045988,0.0154306,39288.0,39280.0,0.00798494]
[1610177046187,0.0154306,39288.0,39287.0,0.13632608]
[1610177046389,0.01543071,39289.0,39287.0,0.13632608]
[1610177046790,0.47392323,39290.0,39287.0,0.14431023]
[1610177046990,0.47392323,39290.0,39288.0,0.00798409]
[1610177048094,0.01543271,39289.0,39288.0,0.00798409]
[1610177048295,0.47392491,39290.0,39288.0,0.00798409]
[1610177048693,0.01543587,39289.0,39288.0,0.00798409]
[1610177049795,0.01543587,39289.0,39288.0,0.00021255]
[1610177049996,0.01543842,39291.0,39288.0,0.00021255]
[1610177050496,0.61048535,39292.0,39288.0,0.00021255]
[1610177050896,0.47428281,39290.0,39271.0,0.00798346]
[1610177051197,0.45885503,39289.0,39271.0,0.00777093]
[1610177051398,0.45885503,39289.0,39272.0,0.00021253]
[1610177051599,0.01544624,39287.0,39272.0,0.00021253]
[1610177051798,0.5689,39286.0,39271.0,0.00798346]
[1610177051999,0.5689,39286.0,39273.0,0.00021253]
[1610177052198,0.5689,39286.0,39282.0,0.13632608]
[1610177052599,0.5689,39286.0,39283.0,0.00021253]
[1610177053702,0.01544624,39287.0,39283.0,0.00021253]
[1610177054102,3.71082608,39284.0,39283.0,0.00021253]
[1610177054306,3.72628117,39284.0,39271.0,0.00798439]
[1610177054702,0.01546031,39281.0,39271.0,0.00777183]
[1610177054903,0.01546144,39279.0,39272.0,0.0002126]
[1610177055101,0.01546144,39279.0,39271.0,0.00798443]
[1610177055305,0.01546436,39278.0,39271.0,0.00798443]
[1610177055503,0.01546436,39278.0,39273.0,0.0002126]
[1610177055704,0.01546436,39278.0,39272.0,0.0002126]
[1610177055903,0.01546436,39278.0,39274.0,0.0002126]
[1610177055904,0.01546546,39277.0,39274.0,0.0002126]
[1610177056103,0.13632608,39275.0,39268.0,0.13632608]
[1610177056505,0.13632608,39275.0,39269.0,0.00021262]
[1610177056706,0.47512568,39274.0,39269.0,0.00021262]
[1610177057105,0.01546984,39273.0,39269.0,0.00021262]
[1610177057506,3.2405,39270.0,39269.0,0.00021262]
[1610177058105,3.37682608,39270.0,39269.0,0.00021262]
[1610177058305,3.37682608,39270.0,39269.0,0.00798653]
[1610177058905,3.2405,39270.0,39269.0,0.00798653]
[1610177059706,3.2405,39270.0,39269.0,0.0079865]
[1610177063409,3.25600761,39270.0,39269.0,0.0079865]
[1610177064208,3.39233369,39270.0,39269.0,0.0079865]
[1610177064408,3.85313539,39270.0,39269.0,0.0079865]
[1610177064813,4.76393807,39270.0,39269.0,0.0079865]
[1610177065717,5.44042956,39270.0,39259.0,0.00798748]
[1610177065914,5.44042956,39270.0,39269.0,0.00021264]
[1610177065915,6.00015392,39270.0,39269.0,0.00021264]
[1610177066315,0.00021264,39264.0,39260.0,0.00021267]
[1610177066515,3.52893459,39270.0,39269.0,0.00021267]
[1610177066715,3.52893459,39270.0,39247.0,0.00777598]
[1610177066716,7.74803459,39270.0,39261.0,0.00021269]
[1610177067123,8.04986841,39270.0,39269.0,0.00021269]
[1610177067317,8.04986841,39270.0,39247.0,0.00777598]
[1610177067318,8.04986841,39270.0,39262.0,0.00021269]
[1610177067517,0.86219618,39263.0,39238.0,0.08285]
[1610177067717,3.753,39253.0,39238.0,0.08285]
[1610177067916,3.43067951,39263.0,39238.0,0.08285]
[1610177068119,3.43067951,39263.0,39243.0,2.9664]
[1610177068319,0.10569,39263.0,39262.0,0.13632608]
[1610177068517,0.10569,39263.0,39262.0,0.09635]
[1610177068720,2.83647823,39263.0,39262.0,0.09635]
[1610177068918,2.83647823,39263.0,39262.0,0.09656265]
[1610177069119,0.46191001,39263.0,39262.0,3.23953644]
[1610177069318,0.46191001,39263.0,39262.0,0.10433644]
[1610177069519,0.67725652,39268.0,39262.0,0.10433644]
[1610177069520,0.46218246,39266.0,39262.0,0.10433644]
[1610177069918,1.87046588,39279.0,39262.0,0.10433644]
[1610177069919,0.46213809,39272.0,39263.0,0.00798461]
[1610177070320,0.46213809,39272.0,39271.0,0.13632608]
[1610177070520,0.77012748,39281.0,39271.0,0.13632608]
[1610177070521,0.46254498,39278.0,39273.0,3.2187]
[1610177070922,0.46255929,39277.0,39274.0,1.50798256]
[1610177071320,0.55488682,39283.0,39275.0,0.00798231]
[1610177071520,0.26846501,39284.0,39275.0,0.00798231]
[1610177071720,0.67869875,39296.0,39275.0,0.02854157]
[1610177071919,0.67869875,39296.0,39275.0,1.52854157]
[1610177072122,0.67865016,39299.0,39275.0,1.52854157]
[1610177072320,0.0109,39285.0,39284.0,1.63632608]
[1610177072520,1.07957959,39315.0,39284.0,1.63632608]
[1610177072521,0.67853565,39306.0,39302.0,4.2569]
[1610177072719,0.67853565,39306.0,39302.0,4.32976]
[1610177072919,0.67853565,39306.0,39302.0,5.82976]
[1610177073121,0.67843631,39313.0,39303.0,0.00797794]
[1610177073320,1.07923939,39328.0,39303.0,0.00797794]
[1610177073526,0.67840032,39321.0,39303.0,0.00797794]
[1610177073921,0.67746334,39327.0,39303.0,0.00797794]
[1610177074320,0.67746334,39327.0,39326.0,0.13632608]
[1610177074521,0.6775032,39329.0,39326.0,0.13632608]
[1610177074722,1.44605947,39327.0,39326.0,0.13653841]
[1610177074921,1.44605947,39327.0,39326.0,0.13632608]
[1610177075323,1.44605947,39327.0,39326.0,0.13653844]
[1610177075520,1.44605947,39327.0,39326.0,0.13632608]
[1610177075721,0.67688872,39327.0,39326.0,0.13653843]
[1610177076922,0.67571505,39328.0,39326.0,0.13653843]
[1610177077322,0.67563924,39329.0,39327.0,0.00021232]
[1610177078324,0.67563924,39329.0,39326.0,0.13632608]
[1610177078525,0.85926544,39339.0,39326.0,0.13632608]
[1610177078526,0.67467702,39331.0,39326.0,0.13632608]
[1610177079726,0.67431677,39332.0,39326.0,0.13632608]
[1610177080127,0.67436337,39329.0,39326.0,0.13632608]
[1610177080328,0.13632608,39328.0,39326.0,0.13632608]
[1610177080526,0.6741203,39327.0,39326.0,0.13632608]
[1610177080929,1.04677184,39327.0,39326.0,0.13632608]
[1610177081127,1.04677184,39327.0,39326.0,0.13477337]
[1610177081431,0.6741203,39327.0,39326.0,0.13477337]
[1610177082430,0.37263489,39329.0,39326.0,0.13477337]
[1610177082830,0.37263007,39327.0,39326.0,0.13477337]
[1610177083332,0.37262746,39328.0,39326.0,0.13477337]
[1610177083732,0.67319795,39331.0,39326.0,0.13477337]
[1610177084133,0.67319971,39330.0,39326.0,0.13477337]
[1610177084332,0.80952579,39330.0,39314.0,0.11716]
[1610177084933,0.6731035,39325.0,39302.0,0.07286]
[1610177085233,0.6731035,39325.0,39301.0,3.6079]
[1610177085435,0.67304878,39323.0,39301.0,3.6079]
[1610177085834,0.37271346,39329.0,39301.0,3.6079]
[1610177085835,0.37267488,39324.0,39301.0,3.6079]
[1610177086033,0.37267488,39324.0,39301.0,3.70356]
[1610177086235,0.67287688,39327.0,39323.0,0.13632608]
[1610177086634,0.67273705,39328.0,39323.0,0.13632608]
[1610177087535,1.04529457,39330.0,39323.0,0.13632608]
[1610177087936,0.37264428,39327.0,39323.0,0.13632608]
[1610177088535,1.04528047,39330.0,39323.0,0.13632608]
[1610177088736,0.67263472,39330.0,39323.0,0.13632608]
[1610177089139,1.04528081,39330.0,39323.0,0.13632608]
[1610177089736,1.04528081,39330.0,39310.0,3.82487]
[1610177089938,0.67232498,39327.0,39310.0,0.08957]
[1610177090341,0.13632608,39320.0,39318.0,0.13632608]
[1610177091942,0.67232706,39325.0,39318.0,0.13632608]
[1610177092144,0.67225573,39326.0,39318.0,0.13632608]
[1610177092341,0.67225573,39326.0,39325.0,0.13632608]
[1610177092541,0.67214108,39328.0,39325.0,0.13632608]
[1610177093144,0.78444483,39331.0,39325.0,0.13632608]
[1610177093544,0.11241,39331.0,39325.0,0.13632608]
[1610177093944,0.2833,39338.0,39325.0,0.13632608]
[1610177094246,0.37252525,39337.0,39325.0,0.13632608]
[1610177094445,0.37252525,39337.0,39312.0,3.4051]
[1610177094647,0.2833,39338.0,39312.0,3.4051]
[1610177094848,0.2833,39338.0,39313.0,0.00021228]
[1610177096448,0.2833,39338.0,39337.0,0.13632608]
[1610177100552,0.54870253,39344.0,39337.0,0.13653837]
[1610177100952,0.54860358,39345.0,39338.0,0.00021229]
[1610177101356,0.54850081,39344.0,39338.0,0.00021229]
[1610177101655,0.45708402,39344.0,39338.0,0.00021229]
[1610177102455,0.13632608,39344.0,39343.0,0.13632608]
[1610177102955,2.18458017,39344.0,39343.0,0.13498609]
[1610177103156,1.81205166,39344.0,39343.0,0.13498609]
[1610177103657,1.51430319,39344.0,39343.0,0.13498609]
[1610177104059,1.14179189,39344.0,39343.0,0.13498609]
[1610177104361,1.51430134,39344.0,39343.0,0.13498609]
[1610177104760,1.14179189,39344.0,39343.0,0.13498609]
[1610177105162,1.51429559,39344.0,39343.0,0.13498609]
[1610177105561,1.14179189,39344.0,39343.0,0.13498609]
[1610177105963,1.51429824,39344.0,39343.0,0.13498609]
[1610177106362,1.37797216,39344.0,39343.0,0.13498609]
[1610177106763,0.45704376,39344.0,39343.0,0.13498609]
[1610177107663,0.45669096,39346.0,39343.0,0.00021221]
[1610177108063,0.45670761,39344.0,39327.0,0.00021273]
[1610177108363,0.45670761,39344.0,39342.0,0.13632608]
[1610177108564,0.54797324,39344.0,39342.0,0.13632608]
[1610177109064,0.45667094,39343.0,39342.0,0.13632608]
[1610177109266,0.45665084,39344.0,39342.0,0.13632608]
[1610177109468,0.45665084,39344.0,39342.0,0.13653881]
[1610177109669,0.45661759,39347.0,39343.0,0.00021273]
[1610177110067,0.00775987,39346.0,39343.0,0.00021273]
[1610177110468,0.007758,39348.0,39343.0,0.00021273]
[1610177110869,0.00775782,39349.0,39343.0,0.00021273]
[1610177111168,0.00775832,39348.0,39343.0,0.00021273]
[1610177111369,0.00775832,39348.0,39342.0,0.13632608]
[1610177111569,0.00775709,39346.0,39342.0,0.13632608]
[1610177111973,0.00775698,39348.0,39342.0,0.13632608]
[1610177112369,0.00775698,39348.0,39347.0,0.13632608]
[1610177112670,0.45644531,39349.0,39347.0,0.13632608]
[1610177113071,0.45641598,39348.0,39347.0,0.13477407]
[1610177113472,0.54766875,39350.0,39347.0,0.13477407]
[1610177113673,0.45640607,39348.0,39347.0,0.13477407]
[1610177114375,0.59273215,39348.0,39347.0,0.13477407]
[1610177116579,0.45640607,39348.0,39347.0,0.13477407]
[1610177118480,0.59273215,39348.0,39347.0,0.13477407]
[1610177118680,1.14094708,39348.0,39347.0,0.13477407]
[1610177119479,1.51343572,39348.0,39347.0,0.13477407]
[1610177121682,1.51343572,39348.0,39336.0,0.07979]
[1610177121882,1.51343572,39348.0,39324.0,0.10322]
[1610177122082,3.921,39339.0,39337.0,0.00021273]
[1610177122283,3.921,39339.0,39325.0,0.00797563]
[1610177122484,3.92877382,39339.0,39338.0,0.00021276]
[1610177122882,0.00777839,39332.0,39330.0,0.00021276]
[1610177123081,0.00777839,39332.0,39329.0,0.13632608]
[1610177123282,0.00777839,39332.0,39331.0,0.00021277]
[1610177123283,0.54920973,39332.0,39331.0,0.00021277]
[1610177123683,0.54920973,39332.0,39330.0,0.00021277]
[1610177123883,0.54920973,39332.0,39331.0,0.00021277]
[1610177124084,0.45798365,39332.0,39331.0,0.00021277]
[1610177124484,0.59430973,39332.0,39329.0,0.13632608]
[1610177124684,1.1442568,39332.0,39329.0,0.13632608]
[1610177124885,1.1442568,39332.0,39330.0,0.00021275]
[1610177125084,1.00793072,39332.0,39330.0,0.00021275]
[1610177125285,0.45798365,39332.0,39330.0,0.00021275]
[1610177126285,0.00779534,39331.0,39330.0,0.00797622]
[1610177126688,0.45929712,39332.0,39330.0,0.00797622]
[1610177127287,0.5493,39331.0,39330.0,0.00797622]
[1610177127490,1.00865007,39331.0,39330.0,0.00797622]
[1610177127788,1.93342018,39331.0,39330.0,0.00797622]
[1610177128188,1.93342018,39331.0,39330.0,0.00797621]
[1610177128388,1.47407011,39331.0,39330.0,0.00797621]
[1610177128588,1.61039619,39331.0,39330.0,0.00797621]
[1610177128792,2.28694985,39331.0,39330.0,0.00797621]
[1610177129089,2.74828118,39331.0,39330.0,0.00797621]
[1610177130592,3.51931259,39331.0,39330.0,0.00797621]
[1610177130792,3.51931259,39331.0,39330.0,0.00021274]
[1610177130992,3.38298651,39331.0,39330.0,0.00797623]
[1610177134596,3.51931259,39331.0,39330.0,0.00797623]
[1610177135399,4.38381396,39331.0,39330.0,0.00021274]
[1610177135597,4.38381396,39331.0,39329.0,0.13498639]
[1610177135796,4.01126558,39331.0,39329.0,0.13498639]
[1610177135997,3.70754038,39330.0,39252.0,2.22755048]
[1610177136197,2.9147,39325.0,39293.0,4.2443]
[1610177136397,0.00787245,39311.0,39293.0,4.2443]
[1610177136597,0.00787245,39311.0,39310.0,0.13632608]
[1610177136796,0.00787245,39311.0,39310.0,0.25632608]
[1610177136996,0.46323947,39312.0,39310.0,0.26430311]
[1610177137599,0.46323947,39312.0,39311.0,0.007977]
[1610177137798,0.37260906,39318.0,39311.0,0.007977]
[1610177137799,0.46320772,39313.0,39311.0,0.007977]
[1610177139603,0.00787094,39312.0,39311.0,0.007977]
[1610177140804,0.46320772,39313.0,39311.0,0.007977]
[1610177141403,0.46320772,39313.0,39311.0,0.00776425]
[1610177141606,0.46320772,39313.0,39310.0,0.25632608]
[1610177141805,0.5558003,39314.0,39312.0,0.00797684]
[1610177142004,0.5558003,39314.0,39311.0,0.00797694]
[1610177142205,0.5558003,39314.0,39313.0,0.00797694]
[1610177142608,4.2079003,39314.0,39311.0,0.00797694]
[1610177142806,4.67110074,39314.0,39313.0,0.00797713]
[1610177143006,4.67110074,39314.0,39312.0,0.00797875]
[1610177143206,0.13632608,39313.0,39312.0,0.00797875]
[1610177143406,0.13632608,39313.0,39310.0,0.12]
[1610177143606,0.13632608,39313.0,39302.0,0.13632608]
[1610177143607,3.53844049,39313.0,39312.0,0.00797956]
[1610177143806,3.53844049,39313.0,39311.0,0.00798042]
[1610177144007,0.37274394,39312.0,39311.0,0.00798042]
[1610177144207,0.37274394,39312.0,39302.0,0.07531]
[1610177144408,2.84268078,39312.0,39311.0,0.00021285]
[1610177144607,2.84268078,39312.0,39303.0,0.00798125]
[1610177144807,2.84268078,39312.0,39311.0,0.00021287]
[1610177145210,1.69823228,39304.0,39303.0,0.00798125]
[1610177145408,1.83455836,39304.0,39303.0,0.00776838]
[1610177145608,1.83455836,39304.0,39303.0,0.00798126]
[1610177145908,1.83455836,39304.0,39299.0,0.00021288]
[1610177146109,2.43235836,39304.0,39299.0,0.00021288]
[1610177146309,2.43235836,39304.0,39303.0,0.00021288]
[1610177146511,2.80519376,39304.0,39300.0,0.00021288]
[1610177146712,2.80519376,39304.0,39303.0,0.00021288]
[1610177146913,3.11347315,39304.0,39303.0,0.00021288]
[1610177147112,3.57641413,39304.0,39301.0,0.00021288]
[1610177147311,3.11347315,39304.0,39303.0,0.00021288]
[1610177147512,3.11347315,39304.0,39302.0,0.0002129]
[1610177147715,0.3728436,39303.0,39302.0,0.0002129]
[1610177147912,2.37758592,39303.0,39296.0,0.13632608]
[1610177148112,2.8402662,39303.0,39302.0,0.00021289]
[1610177148312,2.8402662,39303.0,39296.0,0.13632608]
[1610177148313,1.69639158,39303.0,39296.0,0.13632608]
[1610177148512,1.69639158,39303.0,39302.0,0.00021288]
[1610177148711,0.77070446,39305.0,39302.0,0.00021288]
[1610177148911,0.8631705,39311.0,39297.0,0.00798143]
[1610177149113,0.8631705,39311.0,39296.0,0.13632608]
[1610177149314,1.69550731,39303.0,39298.0,0.00021287]
[1610177149613,0.55470096,39299.0,39295.0,0.00021287]
[1610177149912,0.55470096,39299.0,39294.0,0.09309]
[1610177150114,0.55470096,39299.0,39296.0,0.00021287]
[1610177150513,0.55470096,39299.0,39293.0,0.11704]
[1610177150714,0.55470096,39299.0,39297.0,0.00021287]
[1610177150915,0.55470096,39299.0,39294.0,0.00021287]
[1610177151115,1.59086218,39298.0,39294.0,0.00021287]
[1610177151314,1.59086218,39298.0,39296.0,0.13632608]
[1610177151514,1.12868355,39298.0,39296.0,0.13632608]
[1610177151714,0.55458355,39298.0,39297.0,0.00021289]
[1610177151914,3.68858355,39298.0,39297.0,0.00021289]
[1610177152216,3.68858355,39298.0,39294.0,0.00021289]
[1610177152417,5.20118355,39298.0,39294.0,0.00021289]
[1610177152618,3.5068763,39298.0,39297.0,0.00021292]
[1610177152820,6.52942281,39298.0,39285.0,0.10389]
[1610177153018,6.52942281,39298.0,39297.0,0.00021294]
[1610177153418,6.66574889,39298.0,39286.0,0.00021294]
[1610177153619,6.66574889,39298.0,39281.0,0.13632608]
[1610177153620,6.66574889,39298.0,39297.0,0.00021294]
[1610177153820,3.27032608,39298.0,39287.0,0.00021294]
[1610177154021,3.27032608,39298.0,39297.0,0.00021294]
[1610177154220,6.66440611,39298.0,39297.0,0.00021294]
[1610177154419,6.66440611,39298.0,39278.0,0.00021296]
[1610177154621,5.27047347,39298.0,39297.0,0.00021296]
[1610177154822,5.27047347,39298.0,39279.0,0.00021296]
[1610177155022,0.00784018,39285.0,39279.0,0.00021296]
[1610177155221,0.4127,39284.0,39278.0,0.00021296]
[1610177155423,0.13632608,39279.0,39277.0,0.10726]
[1610177156022,0.00783687,39281.0,39278.0,0.00021298]
[1610177156223,0.46114622,39282.0,39278.0,0.00021298]
[1610177156224,0.00783626,39282.0,39278.0,0.00021298]
[1610177156625,0.00783141,39285.0,39278.0,0.00021298]
[1610177157025,0.076,39284.0,39278.0,0.00021298]
[1610177157225,0.0767,39283.0,39278.0,0.00021298]
[1610177157425,0.0767,39283.0,39282.0,0.13632608]
[1610177157829,4.0179,39287.0,39282.0,0.13653902]
[1610177158328,4.0179,39287.0,39283.0,0.00021296]
[1610177158627,0.00782531,39286.0,39283.0,0.00021296]
[1610177159028,0.00782568,39284.0,39283.0,0.00021296]
[1610177159428,0.14415176,39284.0,39283.0,0.00021296]
[1610177160228,0.22045176,39284.0,39283.0,0.00021296]
[1610177160428,0.14415176,39284.0,39282.0,0.13632608]
[1610177160631,0.14415176,39284.0,39283.0,0.00021298]
[1610177161030,0.13632608,39284.0,39283.0,0.00042595]
[1610177161231,3.36692608,39284.0,39283.0,0.00042595]
[1610177161433,3.82678378,39284.0,39283.0,0.00021298]
[1610177162033,3.82678378,39284.0,39283.0,0.00042597]
[1610177162234,0.59618378,39284.0,39283.0,0.00021298]
[1610177162636,0.67248378,39284.0,39283.0,0.00042597]
[1610177162836,0.67248378,39284.0,39283.0,0.00021298]
[1610177163036,0.67248378,39284.0,39283.0,0.00042597]
[1610177163239,0.59618378,39284.0,39283.0,0.00042597]
[1610177163439,0.4598577,39284.0,39283.0,0.13653906]
[1610177163640,0.4598577,39284.0,39283.0,0.13675205]
[1610177164037,0.00780808,39284.0,39283.0,0.13675205]
[1610177164439,3.21340761,39286.0,39283.0,0.13675205]
[1610177164737,3.2056,39286.0,39283.0,0.13675205]
[1610177164937,3.2056,39286.0,39284.0,0.00021662]